Cogmind - Beta 16 @@@ ROGUE MODE // 2025.12.31 @ 19:18:52 Player: telemetry Result: Destroyed by G-47 Trooper with Particle Gun Performance ------------- Evolutions (2) 1000 Regions Visited (3) 600 Robots Destroyed (39) 195 Value Destroyed (888) 888 Prototype IDs (2) 40 Alien Tech Used (0) 0 Bonus (0) 0 TOTAL SCORE: 2723 Bonus ------- None Cogmind --------- Core Integrity 0/550 Matter 5/300 Energy 13/100 System Corruption 0% Temperature Cool (9) Movement Core (50) Location -8/Materials Parts ------- > --- POWER (1) -------- (None) > --- PROPULSION (4) --- (None) > --- UTILITY (4) ------ ECM Suite > --- WEAPON (2) ------- (None) > --- INVENTORY (5) ---- Ion Engine Improved Signal Interpreter ECM Suite Authchip [R/Combat] Heavy Hammer Peak State ------------ > --- POWER ------------ Improved Ion Engine > --- PROPULSION ------- Light Treads Light Treads Light Treads Improved Aluminum Leg > --- UTILITY ---------- Small Storage Unit Structural Scanner Sensor Array Improved Signal Interpreter > --- WEAPON ----------- Minigun Minigun > --- INVENTORY -------- Ion Engine Advanced Visual Processing Unit Improved Signal Interpreter ECM Suite Authchip [R/Combat] Minigun Mini Grenade Launcher Heavy Hammer [Rating: 20] Favorites ----------- Power Light Ion Engine Engine Light Ion Engine Propulsion Light Treads Treads Light Treads Leg Improved Aluminum Leg Utility Small Storage Unit Device Structural Scanner Storage Small Storage Unit Processor Improved Signal Interpreter Protection Light Armor Plating Weapon Improved Assault Rifle Ballistic Gun Improved Assault Rifle Impact Weapon Heavy Hammer Slashing Weapon Mining Claw Build | -11 -10 -9 -8 ------- Run | Yrd Mat Mat Mat Slots Evolved 4 | . . 2 2 Power . | . . . . Propulsion 2 | . . 1 1 Utility 2 | . . 1 1 Weapon . | . . . . Parts Attached 34 | 7 9 13 5 Power 5 | 1 . 3 1 Engine 5 | 1 . 3 1 Core . | . . . . Reactor . | . . . . Propulsion 6 | 2 . 3 1 Treads 5 | 2 . 3 . Leg 1 | . . . 1 Wheel . | . . . . Hover . | . . . . Flight . | . . . . Utility 10 | 1 4 3 2 Device 6 | . 3 2 1 Storage 2 | 1 1 . . Processor 1 | . . . 1 Hackware . | . . . . Protection 1 | . . 1 . Artifact . | . . . . Weapon 13 | 3 5 4 1 Energy Gun . | . . . . Energy Cannon . | . . . . Ballistic Gun 11 | 3 4 3 1 Ballistic Cannon . | . . . . Launcher . | . . . . Special Weapon . | . . . . Impact Weapon 1 | . . 1 . Slashing Weapon 1 | . 1 . . Piercing Weapon . | . . . . Special Melee Weapon . | . . . . Unidentified Prototypes 2 | . 1 1 . Parts Lost 7 | . . 3 4 Power 1 | . . . 1 Propulsion 2 | . . 1 1 Utility 2 | . . 1 1 Weapon 2 | . . 1 1 Highest Loss Streak 4 | . . 1 4 To Critical Strikes . | . . . . Average Backups 6 | 1 6 6 7 Power . | . 1 . . Propulsion . | . . . . Utility 2 | . . 2 3 Weapon 3 | . 3 3 2 Tool/Special . | . . . . Unused Backups 12 | . 2 5 5 Power . | . . . . Propulsion 1 | . 1 . . Utility 6 | . . 2 4 Weapon 5 | . 1 3 1 Tool/Special . | . . . . Average Slot Usage (%) 86 | . 99 79 77 Engine 11 | . 14 11 7 Treads 21 | . 28 15 21 Device 15 | . 12 17 15 Storage 11 | . 14 11 7 Processor 1 | . . . 7 Ballistic Gun 22 | . 27 21 14 Peak Build Rating 20 | 6 12 15 20 Average Rating 11 | 4 8 12 15 On Entrance 8 | . 6 12 14 Avg Prop Armor Cover (%) 21 | . . . 21 Naked Turns 52 | . . . 52 Heaviest Build 20 | 11 15 20 20 Greatest Support 60 | 40 40 60 60 Greatest Overweight (x) 3 | 3 . . 1 Average Overweight (x) . | . . . . Largest Inventory Capacity 8 | 8 8 8 8 Average Capacity 7 | 7 8 8 7 Most Carried 8 | 3 8 8 8 Average Carried 6 | 1 6 6 7 Final Capacity 8 | 8 8 8 5 Final Carried 8 | 3 8 8 5 Class Distribution -------------------- 74% | Mutant 15% | Scavenger-Skirmisher 9% | Scavenger-Mutant Dominant Class ---------------- Mutant | -10/Materials Mutant | -9/Materials Scavenger-Skirmisher | -8/Materials Resources | -11 -10 -9 -8 ----------- Run | Yrd Mat Mat Mat Matter Collected 1121 | 152 300 643 26 Remotely . | . . . . Salvage Created 1207 | . 359 811 37 Parts 87 | . 30 50 7 Haulers Intercepted 2 | . . 2 . Recyclers Shooed . | . . . . Parts Field Recycled . | . . . . Retrieved Matter . | . . . . Parts Self-Destructed . | . . . . Prevented . | . . . . Parts Restored . | . . . . Kills | -11 -10 -9 -8 ------- Run | Yrd Mat Mat Mat Combat Hostiles Destroyed 29 | . 8 18 3 Guns 29 | . 8 18 3 Classes Destroyed 8 | . 5 3 . Builder 4 | . 3 1 . Tunneler 1 | . 1 . . Hauler 2 | . . 2 . Watcher 3 | . 3 . . Swarmer 10 | . 3 4 3 Grunt 16 | . 5 11 . Brawler 1 | . . 1 . Sentry 2 | . . 2 . Best Kill Streak 5 | . 3 5 3 Combat Bots Only 5 | . 3 5 3 Max Kills in Single Turn 2 | . 2 1 1 Gunslinging 1 | . 1 . . Exploded . | . . . . Melee . | . . . . Uniques/NPCs Destroyed . | . . . . Combat | -11 -10 -9 -8 -------- Run | Yrd Mat Mat Mat Hostile Shots Fired 250 | . 37 97 116 Missed 68 | . 14 18 36 Hits 182 | . 23 79 80 Melee 1 | . . 1 . Projectile 181 | . 23 78 80 Critical Strikes 4 | . 2 1 1 Damage Taken 2219 | . 304 776 1139 Core 760 | . 74 136 550 Absorbed by Shields 103 | . . 103 . Core Remaining (%) 78 | 100 70 66 . Volleys Fired 120 | . 40 61 19 Largest 2 | . 2 2 2 Hottest 50 | . 46 50 50 Shots Fired 238 | . 80 120 38 Gun 238 | . 80 120 38 Cannon . | . . . . Launcher . | . . . . Special . | . . . . Kinetic 238 | . 80 120 38 Thermal . | . . . . Explosive . | . . . . Electromagnetic . | . . . . Robot Hit Streak 15 | . 15 15 8 Robot Miss Streak 3 | . 3 3 3 Penetration Max . | . . . . Secondary Targets 5 | . 1 3 1 Max Gunslinging Chain 1 | . 1 1 1 Shots Hit Robots 161 | . 51 85 25 Core Hits 56 | . 19 30 7 Critical Kills 1 | . 1 . . Critical Parts Destroyed . | . . . . Critical Strikes 1 | . 1 . . Destroy 1 | . 1 . . Melee Attacks 8 | . 5 3 . Impact 3 | . . 3 . Slashing 5 | . 5 . . Piercing . | . . . . Sneak Attacks . | . . . . Combat Hostiles . | . . . . Follow-up Attacks . | . . . . Damage Inflicted 2500 | . 711 1381 408 Guns 2491 | . 706 1377 408 Cannons . | . . . . Explosions . | . . . . Melee . | . . . . Ramming 9 | . 5 4 . Kinetic 2491 | . 706 1377 408 Thermal . | . . . . Explosive . | . . . . Electromagnetic . | . . . . Impact . | . . . . Slashing . | . . . . Piercing . | . . . . Highest Corruption 10 | . . 10 . Average Corruption 6 | . . 6 . Corruption Purged . | . . . . Corruption Blocked . | . . . . Effects 27 | . . 27 . Message Errors 10 | . . 10 . Matter Fused 6 | . . 6 . Heat Flow Errors 3 | . . 3 . Energy Discharges 3 | . . 3 . Data Loss (minor) 1 | . . 1 . Data Loss (major) 1 | . . 1 . Misfires 1 | . . 1 . Alerts 1 | . . 1 . Weapon Failures 1 | . . 1 . Overload Shots . | . . . . Overflow Damage . | . . . . Projectiles . | . . . . Explosions . | . . . . Melee . | . . . . Knockbacks . | . . . . Impact . | . . . . Kinetic . | . . . . Secondary . | . . . . Self-Inflicted Damage . | . . . . Shots . | . . . . Rammed 4 | . 1 3 . Targets Rammed 5 | . 2 3 . Kicked . | . . . . Crushed 1 | . 1 . . Highest Temperature 237 | . 43 237 9 Average Temperature 37 | . 12 55 9 Received Heat Transfer 781 | . 183 319 279 Siege Activations . | . . . . Martial Activations . | . . . . Shielding Activations . | . . . . Robots Disrupted . | . . . . Combat Hostiles . | . . . . Robots Corrupted . | . . . . Combat Hostiles . | . . . . Parts Fried . | . . . . Impact Corruptions . | . . . . Robots Melted . | . . . . Combat Hostiles . | . . . . Parts Melted . | . . . . Heat Transferred . | . . . . Parts Sabotaged . | . . . . Parts Stolen . | . . . . Parts Stripped . | . . . . Power Chain Reactions . | . . . . Alert | -11 -10 -9 -8 ------- Run | Yrd Mat Mat Mat Maximum Alert Level . | . . . . Low Security (%) 100 | 100 100 100 100 Level 1 . | . . . . Level 2 . | . . . . Level 3 . | . . . . Level 4 . | . . . . Level 5 . | . . . . High Security . | . . . . Max Security . | . . . . Peak Influence 198 | . 62 198 60 Initial 15 | . . 7 15 Average 35 | . 15 70 8 Influence Increases 931 | . 282 528 121 Destroy 0b10 Robot/C 580 | . 160 360 60 Destroy 0b10 Robot/NC 50 | . 35 15 . Destroy Leader 110 | . 36 64 10 Successful Hack 46 | . 17 24 5 Select Force Hacks 30 | . . 30 . Destroy Structure 10 | . 4 5 1 Partial Spotted 15 | . . . 15 Lose Combat Pursuer 90 | . 30 30 30 Influence Decreases 916 | . 264 508 144 Entered New Map 34 | . . 11 23 Time Decay 804 | . 264 419 121 Lost Part 30 | . . 30 . Purge Threat 48 | . . 48 . Squads Dispatched 4 | . 1 1 2 Investigation 2 | . 1 1 . Extermination . | . . . . Reinforcement 1 | . . . 1 Assault . | . . . . Garrison 1 | . . . 1 Intercept . | . . . . Searches Triggered . | . . . . Construction Impeded . | . . . . Haulers Reinforced . | . . . . Active Scanning Responses . | . . . . Cargo Convoy Interrupts . | . . . . Stealth | -11 -10 -9 -8 --------- Run | Yrd Mat Mat Mat Distress Signals 5 | . . 1 4 Communications Jammed . | . . . . Distress Signals . | . . . . Times Spotted 87 | . 23 26 38 Peak Tracking Total 16 | . 4 6 16 Tactical Retreats 7 | . 2 1 4 ECM-based Alert Blocks 15 | . . . 15 Traps | -11 -10 -9 -8 ------- Run | Yrd Mat Mat Mat Traps Triggered 3 | . . . 3 Indirectly . | . . . . Trap Hack Attempts . | . . . . Triggered . | . . . . Disarmed . | . . . . Reprogrammed . | . . . . Reused . | . . . . Traps Extracted . | . . . . Installed . | . . . . Triggered . | . . . . Machines | -11 -10 -9 -8 ---------- Run | Yrd Mat Mat Mat Machines Disabled . | . . . . Max in Single Turn . | . . . . Machines Repaired . | . . . . Machines Dismantled . | . . . . Machines Sabotaged . | . . . . Overloaded Fab Kills . | . . . . Hacking | -11 -10 -9 -8 --------- Run | Yrd Mat Mat Mat Machines Accessed 10 | . 5 4 1 Terminals 9 | . 5 3 1 Fabricators . | . . . . Repair Stations . | . . . . Recycling Units . | . . . . Scanalyzers 1 | . . 1 . Garrison Access . | . . . . Total Hacks 34 | . 19 13 2 Successful 19 | . 10 8 1 Failed 15 | . 9 5 1 Catastrophic 2 | . 2 . . Database Lockouts . | . . . . Manual 27 | . 14 11 2 Terminals 31 | . 19 10 2 Fabricators . | . . . . Repair Stations . | . . . . Recycling Units . | . . . . Scanalyzers 3 | . . 3 . Garrison Access . | . . . . Terminal Hacks 10 | . 6 4 . Robot Analysis 4 | . 4 . . Unreport Threat 1 | . . 1 . Locate Traps 1 | . 1 . . Patrol Status 1 | . . 1 . Zone Layout 3 | . 1 2 . Fabricator Hacks . | . . . . Repair Station Hacks . | . . . . Recycling Unit Hacks . | . . . . Scanalyzer 1 | . . 1 . Retrieve Study 1 | . . 1 . Garrison Access Hacks . | . . . . Unauthorized Hacks 8 | . 4 3 1 Terminals 7 | . 4 2 1 Botnet 7 | . 4 2 1 Fabricators . | . . . . Repair Stations . | . . . . Recycling Units . | . . . . Scanalyzers 1 | . . 1 . Extract 1 | . . 1 . Garrison Access . | . . . . Data Cores Recovered . | . . . . Used . | . . . . Hacking Detections 9 | . 5 3 1 Full Trace Events 2 | . 2 . . Feedback Events . | . . . . Feedback Blocked . | . . . . Robot Schematics Acquired . | . . . . Robots Built . | . . . . Authchips . | . . . . Time . | . . . . Total Robot Build Rating . | . . . . Part Schematics Acquired 8 | . . 8 . Parts Built . | . . . . Authchips . | . . . . Time . | . . . . Total Part Build Rating . | . . . . Part Studies Acquired 1 | . . 1 . Parts Repaired . | . . . . Time . | . . . . Parts Recycled . | . . . . Recycled Matter . | . . . . Retrieved Matter . | . . . . Retrieved Components . | . . . . Parts Scanalyzed . | . . . . Part Schematics Acquired . | . . . . Parts Damaged . | . . . . Bothacking | -11 -10 -9 -8 ------------ Run | Yrd Mat Mat Mat Used RIF Installer . | . . . . Robots Hacked . | . . . . Non-combat . | . . . . Combat . | . . . . Robot Hacks Applied . | . . . . Relay Couplers Released . | . . . . Fabnet Peak Effective % . | . . . . Robots Rewired . | . . . . Allies Hacked . | . . . . Hacks Repelled . | . . . . Allies | -11 -10 -9 -8 -------- Run | Yrd Mat Mat Mat Total Allies . | . . . . Largest Group . | . . . . Highest-Rated Group . | . . . . Highest-Rated Ally . | . . . . Total Orders . | . . . . Ally Attacks . | . . . . Total Damage . | . . . . Kills . | . . . . Allies Corrupted . | . . . . Allies Melted . | . . . . Intel | -11 -10 -9 -8 ------- Run | Yrd Mat Mat Mat Active Infowar (turns) 2225 | . 578 1092 555 Sensors 718 | . 234 . 484 Structural 1923 | . 344 1092 487 ECM 68 | . . . 68 Robot Analysis Total 4 | . 4 . . Derelict Logs Recovered . | . . . . Drone Launches . | . . . . Drone Recoveries . | . . . . Exploration | -11 -10 -9 -8 ------------- Run | Yrd Mat Mat Mat Turns Passed 2914 | 66 1116 1125 607 Spaces Moved 1437 | 36 586 425 390 Core 186 | 16 . . 170 Treads 1124 | 20 586 425 93 Legs 127 | . . . 127 Wheels . | . . . . Hover . | . . . . Flight . | . . . . Fastest Speed 50 | 50 160 160 50 Average Speed 149 | 145 160 160 121 Slowest Speed 200 | 200 160 160 190 Overloaded Moves . | . . . . Propulsion Burnouts . | . . . . Robots Hopped . | . . . . Potential Cave-ins . | . . . . Cave-ins Triggered . | . . . . Exploration Rate (%) 46 | 4 86 41 56 Regions Visited 3 Branch Regions . Pre-discovered Areas . | . . . . Known Exits Taken . | . . . . Unknown Exits Taken 3 | 1 1 1 . Scrap Searched . | . . . . Spaces Dug 6 | . 4 2 . Terrain Destroyed 6 | . 4 2 . Melee 6 | . 4 2 . Projectile . | . . . . AOE . | . . . . Terrain Rammed . | . . . . Walls Destroyed . | . . . . Machines Disabled . | . . . . Actions | -11 -10 -9 -8 --------- Run | Yrd Mat Mat Mat Total 1975 | 46 686 751 492 Wait 322 | 2 30 219 71 Move 1435 | 35 586 424 390 Hop . | . . . . Pick Up 23 | 2 7 12 2 Fast Attach 14 | 6 2 4 2 Attach 6 | . . 3 3 Detach 1 | . 1 . . Swap 19 | 1 8 9 1 Drop 23 | . 6 13 4 Fire 120 | . 40 61 19 Melee 8 | . 5 3 . Ram . | . . . . Kick . | . . . . Crush 4 | . 1 3 . Escape Stasis . | . . . . Rewire . | . . . . Trap . | . . . . Miscellaneous . | . . . . Route ------- -11/Scrapyard -10/Materials (discovered 3 exits: *Mat x2 / [*Min]) -9/Materials (discovered 2 exits: *Mat / [*Min]) -8/Materials (discovered 1 exit: *Fac) History --------- Turn | Location | Event 21 | -11/Scrapyard | Discovered new exit (range 16) 67 | -11/Scrapyard | Entered Materials 316 | -10/Materials | Build established: Mutant 565 | -10/Materials | Discovered new exit (range 3) 947 | -10/Materials | Discovered new exit (range 16) 1101 | -10/Materials | Discovered new exit (range 3) 1183 | -10/Materials | Entered another Materials area 1183 | -9/Materials | Evolved 2 slots: Propulsion x1, Utility x1 1826 | -9/Materials | Discovered new exit (range 9) 1985 | -9/Materials | System corruption reached 10% 2163 | -9/Materials | Discovered new exit (range 16) 2308 | -9/Materials | Entered another Materials area 2308 | -8/Materials | Evolved 2 slots: Propulsion x1, Utility x1 2548 | -8/Materials | Discovered new exit (range 16) 2575 | -8/Materials | Identified exit to Factory 2609 | -8/Materials | Build established: Scavenger-Skirmisher 2689 | -8/Materials | Garrison activated, responded to threat 2795 | -8/Materials | Released all parts (8) 2817 | -8/Materials | Core integrity fell below 50% 2825 | -8/Materials | Lost 4 parts (1p1n1u1w) 2831 | -8/Materials | Core integrity fell below 20% 2915 | -8/Materials | Destroyed by G-47 Trooper with Particle Gun Last Messages --------------- 02795_ Released Lgt. Treads. 02795_ Released Minigun. 02795_ Released Structural Scanner. 02795_ Released Sml. Storage Unit. 02795_ Released Imp. Signal Interpreter. 02795_ Released Minigun. 02800_ Triggered Blade Trap. 02800_ Massive razor-sharp blades shoot up from within the floor. 02803_ U-05 Engineer lays Concrete. 02816_ Critical hit (Burn: +37). 02820_ U-05 Engineer destroyed. 02821_ K-01 Serf collects debris. 02833_ U-05 Engineer builds a Door. 02847_ Acquired ECM Suite. 02885_ Drone sends a signal. 02891_ O-24 Administrator: "IFF HANDSHAKE FAILED. SECURING TERMINAL." 02903_ ALERT: Hostiles spotted, dispatching reinforcements to Terminal M005. Map ----- +----------------------------------------------------+ | ?????????????????????????????????????????????????? | | ?????????????????????????????????????????????????? | | ?????????????????????????????????????????????????? | | ?????????????????????????????????????????????????? | | ?????????????????????????????????????????????????? | | ?????????????????????????????????????????????????? | | ?????????????????????????????????????????????????? | | ?????????????????????????????????????????????????? | | ?????????????????????????????????????????????????? | | ?????????????????????????????????????????????????? | | ?????????????????????????????????????????????????? | | ?????????????????????????????????????????????????? | | ?????????????????????????????????????????????????? | | ??????????????????????????????????????????????? ? | | ???????????????????????#######??????????????####/# | | ???????????????????????? #??????????????# | | ???????????????????????? #??????????????# "" | | ???????????????????????? " #???????????????! "" | | ???????????????????????? ?????????????????? "" | | ???????????????????????? !???????????????????? | | ????????????????????????# #?#???????????######## | | ????????????????????????# # ????????????# | | ????????????????????????# g # ????????????# | | ??????????????????###???# +?????????????# | | ??????????????????# ""??# b #???????????### #### | | ??????????????????# "R??#@g #??????????? # #??? | | ??????????????????# " "?# #??????????? "# #??? | | ??????????????????# ?# ###### """"" "# #??? | | ??????????????????# =# / """"" "# #??? | | ??????????????????# !! # ###### T# #??? | | ??????????????????# !! + #????# """"" "# #??? | | ??????????????????# ! # #????# """"" "# #??? | | ??????????????????# !# #??????""""" "# #??? | | ??????????????????## #### ##??????? # #??? | | ???????????????????#???# ##########+### #??? | | ???????????????????????# #??? | | ???????????????????????# T #??? | | ???????????????????????# #??? | | ???????????????????????# ###"######/#######??? | | ???????????????????????#######?? ???? ???????? | | ???????????????????????????????? ] #???? ![?????? | | ???????????????????????????????? #???? [[#????? | | ????????????????????????????????? #????? #????? | | ?????????????????????????????????! #????? +????? | | ????????????????????????????????? #?????? #????? | | ????????????????????????????????? #?????? #????? | | ?????????????????????????????????? #??????? #????? | | ?????????????????????????????????? #??????? #????? | | ??????????????????????????????????##????????#????? | | ?????????????????????????????????????????????????? | +----------------------------------------------------+ Best States ------------- Heat Dissipation 35 Energy Generation 12 Energy Capacity 265 Matter Stores 300 Matter Capacity 300 Sight Range 16 Robot Scan Range 14 Terrain Scan Density 10 ECM Strength 1 Armor Coverage 150 Evasion (%) 50 Recoil Reduction 3 Authchip Count 1 Item Schematics ----------------- VTOL Module | -9/Materials | Extracted Autogun | -9/Materials | Extracted ECM Suite | -9/Materials | Extracted Particle Cannon | -9/Materials | Extracted Lgt. Treads | -9/Materials | Extracted EM Pulse Gun | -9/Materials | Extracted EMP Blaster | -9/Materials | Extracted Med. Matter Pod | -9/Materials | Extracted Robot Schematics ------------------ None Fabricated ------------ Nothing Repaired ---------- Nothing Studied --------- Autogun | -9/Materials | Hacked Alien Tech Used ----------------- None Achievements -------------- Brute Force Fishing Tech Challenges ------------ None Game ------ Seed LayeredFissionDriver Manual? 0 Play Time 00:25:34 Cumulative 27.8 hours Start 2025.12.31 @ 18:52:12 End 2025.12.31 @ 19:18:52 Sessions 1 Manual Loads 0 Difficulty Rogue Special Mode None Game No. 26 Rogue 26 Adventurer 0 Explorer 0 Win Type - Total 0 Types 0/0/0/0/0/0/0/0/0/0 Lore% 27 Gallery% 23 Achievement% 22 Wizard Run 0 Options --------- Layout 1 ASCII 0 Keyboard 0 Movement Numpad Keybinds 0 Fullscreen 1 Font 24/Smallcaps Map View 50x40 Zoom Use 0% Tactical HUD 1 Map Filters NONE Filters NONE Steam 1 RUN: 2a2501df-15fc-42aa-b2c5-694c415cc177